Cogmind - Beta 15 @@@ ROGUE MODE // 2025.05.05 @ 21:18:52 Player: OctagonalPrism Result: Destroyed by G-47 Trooper with Particle Gun Performance ------------- Evolutions (2) 1000 Regions Visited (3) 600 Robots Destroyed (27) 135 Value Destroyed (788) 788 Prototype IDs (16) 320 Alien Tech Used (0) 0 Bonus (0) 0 TOTAL SCORE: 2843 Bonus ------- None Cogmind --------- Core Integrity 0/550 Matter 227/300 Energy 99/100 System Corruption 0% Temperature Cool (9) Movement Core (100) Ox1 Location -8/Materials Parts ------- > --- POWER (1) -------- (None) > --- PROPULSION (2) --- (None) > --- UTILITY (6) ------ Improved Sensor Array Improved Signal Interpreter Improved Targeting Computer Improved Targeting Computer Gun Armor Makeshift System Shield > --- WEAPON (2+1) ----- (None) > --- INVENTORY (5) ---- Light Nuclear Core Compact Wheel Improved Terrain Scanner Hacking Suite Multitool Peak State ------------ > --- POWER ------------ Ion Engine > --- PROPULSION ------- Armored Treads Wheel > --- UTILITY ---------- Small Storage Unit Improved Sensor Array Improved Signal Interpreter Improved Terrain Scanner Gun Armor Makeshift System Shield > --- WEAPON ----------- Heavy Particle Gun Heavy Assault Rifle Gauss Rifle > --- INVENTORY -------- Light Nuclear Core Light Treads Scrap Shield Subdweller Machine Gun Multitool [Rating: 39] Favorites ----------- Power Ion Engine Engine Ion Engine Propulsion Light Treads Treads Light Treads Wheel Wheel Utility Small Storage Unit Device Improved Terrain Scanner Storage Small Storage Unit Processor Improved Signal Interpreter Hackware Makeshift System Shield Protection Gun Armor Weapon Battle Rifle Energy Gun EM Shotgun Ballistic Gun Battle Rifle Special Weapon Multitool Build | -11 -10 -10 -8 ------- Run | Yrd Mat Sub Mat Slots Evolved 4 | . . . 4 Power . | . . . . Propulsion . | . . . . Utility 4 | . . . 4 Weapon . | . . . . Parts Attached 31 | 9 1 7 14 Power 1 | 1 . . . Engine 1 | 1 . . . Core . | . . . . Reactor . | . . . . Propulsion 6 | 3 . 1 2 Treads 3 | 1 . . 2 Leg . | . . . . Wheel 3 | 2 . 1 . Hover . | . . . . Flight . | . . . . Utility 10 | 2 . . 8 Device 3 | 1 . . 2 Storage 1 | 1 . . . Processor 3 | . . . 3 Hackware 1 | . . . 1 Protection 2 | . . . 2 Artifact . | . . . . Weapon 14 | 3 1 6 4 Energy Gun 4 | 1 1 1 1 Energy Cannon . | . . . . Ballistic Gun 9 | 2 . 5 2 Ballistic Cannon . | . . . . Launcher . | . . . . Special Weapon 1 | . . . 1 Impact Weapon . | . . . . Slashing Weapon . | . . . . Piercing Weapon . | . . . . Special Melee Weapon . | . . . . Unidentified Prototypes 1 | . . . 1 Corrupted Parts 2 | . . 2 . System Corruption 5 | . . 5 . Parts Lost 16 | . . 5 11 Power 1 | . . . 1 Propulsion 4 | . . 1 3 Utility 3 | . . . 3 Weapon 8 | . . 4 4 Highest Loss Streak 11 | . . 2 11 To Critical Strikes . | . . . . Average Backups 4 | 2 4 5 3 Power . | . . . . Propulsion 1 | 1 2 2 . Utility 1 | . . 1 . Weapon . | . 2 1 . Tool/Special . | . . . . Unused Backups 3 | . . . 3 Power 1 | . . . 1 Propulsion 1 | . . . 1 Utility 1 | . . . 1 Weapon . | . . . . Tool/Special . | . . . . Average Slot Usage (%) 86 | . 100 89 77 Engine 11 | . 14 14 5 Treads 11 | . 14 14 6 Wheel 7 | . 14 7 5 Device 12 | . 14 14 8 Storage 11 | . 14 14 5 Processor 1 | . . . 4 Hackware 2 | . . . 7 Protection 3 | . . . 12 Energy Gun 8 | . 10 9 5 Ballistic Gun 14 | . 17 15 11 Peak Build Rating 39 | 9 10 13 39 Average Rating 17 | 5 9 11 32 On Entrance 8 | . 9 10 13 Naked Turns . | . . . . Heaviest Build 44 | 14 16 19 44 Greatest Support 40 | 26 16 20 40 Greatest Overweight (x) 4 | . . 4 4 Average Overweight (x) . | . . . 2 Largest Inventory Capacity 8 | 8 8 8 8 Average Capacity 7 | 7 8 8 7 Most Carried 8 | 3 6 8 7 Average Carried 5 | 2 4 6 3 Final Capacity 8 | 8 8 8 5 Final Carried 7 | 3 5 7 5 Class Distribution -------------------- 79% | Mutant 13% | Tank 4% | Skirmisher Dominant Class ---------------- Mutant | -10/Materials Mutant | -10/Subcaves Tank | -8/Materials Resources | -11 -10 -10 -8 ----------- Run | Yrd Mat Sub Mat Matter Collected 872 | 310 56 228 278 Remotely . | . . . . Salvage Created 1060 | 112 30 244 674 Parts 55 | 7 3 17 28 Haulers Intercepted . | . . . . Recyclers Shooed 1 | . . . 1 Parts Field Recycled . | . . . . Retrieved Matter . | . . . . Parts Self-Destructed 16 | . . 16 . Prevented . | . . . . Kills | -11 -10 -10 -8 ------- Run | Yrd Mat Sub Mat Combat Hostiles Destroyed 19 | . . 6 13 Guns 19 | . . 6 13 Classes Destroyed 11 | 2 1 2 6 Worker 1 | . . . 1 Tunneler 2 | 2 . . . Recycler 2 | 1 . . 1 Operator 1 | . . . 1 Watcher 2 | . 1 . 1 Swarmer 5 | . . 2 3 Grunt 5 | . . . 5 Brawler 1 | . . . 1 Sentry 3 | . . . 3 Hunter 1 | . . . 1 Subdweller 4 | . . 4 . Best Kill Streak 6 | 2 1 2 6 Combat Bots Only 5 | . . 2 5 Max Kills in Single Turn 2 | 1 1 1 2 Gunslinging 1 | . . . 1 Exploded . | . . . . Melee . | . . . . Uniques/NPCs Destroyed . | . . . . Combat | -11 -10 -10 -8 -------- Run | Yrd Mat Sub Mat Hostile Shots Fired 244 | . . 43 201 Missed 61 | . . 13 48 Hits 183 | . . 30 153 Melee 1 | . . . 1 Projectile 182 | . . 30 152 AOE 1 | . . 1 . Critical Strikes 6 | . . 1 5 Damage Taken 2967 | . . 633 2334 Core 724 | . . 157 567 Absorbed by Shields . | . . . . Core Remaining (%) 68 | 100 . 37 . Volleys Fired 107 | 14 2 45 46 Largest 3 | 2 1 2 3 Hottest 115 | 40 45 90 115 Shots Fired 192 | 28 2 60 102 Gun 192 | 28 2 60 102 Cannon . | . . . . Launcher . | . . . . Special . | . . . . Kinetic 147 | 28 . 46 73 Thermal 29 | . . . 29 Explosive . | . . . . Electromagnetic 16 | . 2 14 . Robot Hit Streak 23 | 3 3 21 23 Robot Miss Streak 4 | 3 1 3 4 Penetration Max 1 | . . . 1 Secondary Targets 4 | . . 2 2 Max Gunslinging Chain 1 | . . 1 1 Shots Hit Robots 99 | 12 2 23 62 Core Hits 49 | 5 2 15 27 Critical Kills 1 | . . . 1 Critical Parts Destroyed 1 | . . . 1 Critical Strikes 5 | . . 1 4 Burn 2 | . . . 2 Destroy 3 | . . 1 2 Melee Attacks . | . . . . Impact . | . . . . Slashing . | . . . . Piercing . | . . . . Sneak Attacks . | . . . . Combat Hostiles . | . . . . Follow-up Attacks . | . . . . Damage Inflicted 1795 | 123 40 346 1286 Guns 1793 | 123 40 346 1284 Cannons . | . . . . Explosions . | . . . . Melee . | . . . . Ramming 2 | . . . 2 Kinetic 1310 | 123 . 149 1038 Thermal 246 | . . . 246 Explosive . | . . . . Electromagnetic 237 | . 40 197 . Impact . | . . . . Slashing . | . . . . Piercing . | . . . . Highest Corruption 5 | . . 5 . Average Corruption 4 | . . 4 . Corruption Purged . | . . . . Corruption Blocked . | . . . . Effects 7 | . . 7 . Message Errors 1 | . . 1 . Matter Fused 4 | . . 4 . Energy Discharges 1 | . . 1 . Misfires 1 | . . 1 . Overload Shots . | . . . . Overflow Damage . | . . . . Projectiles . | . . . . Explosions . | . . . . Melee . | . . . . Knockbacks . | . . . . Impact . | . . . . Kinetic . | . . . . Secondary . | . . . . Self-Inflicted Damage 1 | . . . 1 Shots . | . . . . Rammed 1 | . . . 1 Targets Rammed 1 | . . . 1 Kicked . | . . . . Crushed . | . . . . Highest Temperature 373 | . 4 3 373 Average Temperature 112 | . 3 3 115 Received Heat Transfer 1254 | . . 66 1188 Effects 4 | . . . 4 Shutdowns 1 | . . . 1 Interference 1 | . . . 1 Matter Decay 1 | . . . 1 Damage (minor) 1 | . . . 1 Siege Activations . | . . . . Martial Activations . | . . . . Shielding Activations . | . . . . Robots Disrupted . | . . . . Combat Hostiles . | . . . . Robots Corrupted . | . . . . Combat Hostiles . | . . . . Parts Fried 2 | . . 2 . Impact Corruptions . | . . . . Robots Melted . | . . . . Combat Hostiles . | . . . . Parts Melted . | . . . . Heat Transferred 629 | . . . 629 Parts Sabotaged . | . . . . Parts Stolen . | . . . . Parts Stripped . | . . . . Power Chain Reactions . | . . . . Alert | -11 -10 -10 -8 ------- Run | Yrd Mat Sub Mat Maximum Alert Level . | . . . . Low Security (%) 100 | 100 100 . 100 Level 1 . | . . . . Level 2 . | . . . . Level 3 . | . . . . Level 4 . | . . . . Level 5 . | . . . . High Security . | . . . . Max Security . | . . . . Peak Influence 178 | 10 7 . 178 Initial . | . . . . Average 79 | 1 . . 108 Influence Increases 597 | 15 7 70 505 Destroy 0b10 Robot/C 300 | . . 40 260 Destroy 0b10 Robot/NC 40 | 15 5 . 20 Destroy Leader 74 | . 2 . 72 Successful Hack 14 | . . . 14 Disable Machine 45 | . . . 45 Destroy Structure 4 | . . . 4 Lose Combat Pursuer 120 | . . 30 90 Influence Decreases 524 | 15 7 70 432 Time Decay 414 | 15 7 70 322 Lost Part 110 | . . . 110 Squads Dispatched 2 | . 1 . 1 Investigation 1 | . . . 1 Extermination . | . . . . Reinforcement 1 | . 1 . . Assault . | . . . . Garrison . | . . . . Intercept . | . . . . Searches Triggered . | . . . . Construction Impeded . | . . . . Haulers Reinforced . | . . . . Active Scanning Responses . | . . . . Cargo Convoy Interrupts . | . . . . Stealth | -11 -10 -10 -8 --------- Run | Yrd Mat Sub Mat Distress Signals 3 | . 1 . 2 Communications Jammed . | . . . . Distress Signals . | . . . . Times Spotted 52 | . 4 15 33 Peak Tracking Total 10 | . 1 6 10 Tactical Retreats 5 | . . 1 4 Traps | -11 -10 -10 -8 ------- Run | Yrd Mat Sub Mat Traps Triggered 2 | . . 1 1 Indirectly . | . . . . Trap Hack Attempts . | . . . . Triggered . | . . . . Disarmed . | . . . . Reprogrammed . | . . . . Reused . | . . . . Traps Extracted . | . . . . Installed . | . . . . Triggered . | . . . . Machines | -11 -10 -10 -8 ---------- Run | Yrd Mat Sub Mat Machines Disabled 5 | . . 2 3 Max in Single Turn 1 | . . 1 1 Garrison Access 1 | . . . 1 Machines Repaired . | . . . . Machines Dismantled . | . . . . Machines Sabotaged . | . . . . Overloaded Fab Kills . | . . . . Hacking | -11 -10 -10 -8 --------- Run | Yrd Mat Sub Mat Machines Accessed 9 | . . 1 8 Terminals 6 | . . . 6 Fabricators . | . . . . Repair Stations . | . . . . Recycling Units 1 | . . . 1 Scanalyzers . | . . . . Garrison Access 1 | . . . 1 Total Hacks 33 | . . 1 32 Successful 15 | . . 1 14 Failed 18 | . . . 18 Catastrophic 3 | . . . 3 Database Lockouts . | . . . . Manual 15 | . . . 15 Terminals 28 | . . . 28 Fabricators . | . . . . Repair Stations . | . . . . Recycling Units 3 | . . . 3 Scanalyzers . | . . . . Garrison Access 1 | . . . 1 Terminal Hacks 8 | . . 1 7 Prototype ID Bank 2 | . . . 2 Branch Access Points 1 | . . . 1 Terminal Index 1 | . . . 1 Registered Components 1 | . . . 1 Zone Layout 2 | . . . 2 Proto ID Catalog 1 | . . 1 . Fabricator Hacks . | . . . . Repair Station Hacks . | . . . . Recycling Unit Hacks 1 | . . . 1 Report Inventory 1 | . . . 1 Scanalyzer . | . . . . Garrison Access Hacks 1 | . . . 1 Seal Access 1 | . . . 1 Unauthorized Hacks 5 | . . . 5 Terminals 3 | . . . 3 Botnet 2 | . . . 2 Operators 1 | . . . 1 Fabricators . | . . . . Repair Stations . | . . . . Recycling Units 2 | . . . 2 Monitor 1 | . . . 1 Recyclers 1 | . . . 1 Scanalyzers . | . . . . Garrison Access . | . . . . Data Cores Recovered 1 | . . . 1 Used 1 | . . . 1 Hacking Detections 3 | . . . 3 Full Trace Events . | . . . . Feedback Events . | . . . . Feedback Blocked . | . . . . Robot Schematics Acquired . | . . . . Robots Built . | . . . . Authchips . | . . . . Time . | . . . . Total Robot Build Rating . | . . . . Part Schematics Acquired . | . . . . Parts Built . | . . . . Authchips . | . . . . Time . | . . . . Total Part Build Rating . | . . . . Parts Repaired . | . . . . Time . | . . . . Parts Recycled . | . . . . Recycled Matter . | . . . . Retrieved Matter . | . . . . Retrieved Components . | . . . . Parts Scanalyzed . | . . . . Part Schematics Acquired . | . . . . Parts Damaged . | . . . . Bothacking | -11 -10 -10 -8 ------------ Run | Yrd Mat Sub Mat Used RIF Installer . | . . . . Robots Hacked . | . . . . Non-combat . | . . . . Combat . | . . . . Robot Hacks Applied . | . . . . Relay Couplers Released . | . . . . Fabnet Peak Effective % . | . . . . Robots Rewired . | . . . . Allies Hacked . | . . . . Hacks Repelled . | . . . . Allies | -11 -10 -10 -8 -------- Run | Yrd Mat Sub Mat Total Allies . | . . . . Largest Group . | . . . . Highest-Rated Group . | . . . . Highest-Rated Ally . | . . . . Total Orders . | . . . . Ally Attacks . | . . . . Total Damage . | . . . . Kills . | . . . . Allies Corrupted . | . . . . Allies Melted . | . . . . Intel | -11 -10 -10 -8 ------- Run | Yrd Mat Sub Mat Active Infowar (turns) 2392 | 21 146 1553 672 Sensors 149 | . . . 149 Terrain 2365 | 21 146 1553 645 Robot Analysis Total . | . . . . Derelict Logs Recovered . | . . . . Drone Launches . | . . . . Drone Recoveries . | . . . . Exploration | -11 -10 -10 -8 ------------- Run | Yrd Mat Sub Mat Turns Passed 2620 | 142 146 1553 779 Spaces Moved 1503 | 91 116 908 388 Core 89 | 2 . 2 85 Treads 567 | . . 542 25 Legs . | . . . . Wheels 847 | 89 116 364 278 Hover . | . . . . Flight . | . . . . Fastest Speed 50 | 50 100 95 100 Average Speed 130 | 96 100 137 130 Slowest Speed 250 | 100 100 250 250 Overloaded Moves . | . . . . Propulsion Burnouts . | . . . . Robots Hopped . | . . . . Potential Cave-ins . | . . . . Cave-ins Triggered . | . . . . Exploration Rate (%) 30 | 6 28 40 47 Regions Visited 3 Branch Regions 1 Pre-discovered Areas . | . . . . Known Exits Taken . | . . . . Unknown Exits Taken 3 | 1 1 1 . Scrap Searched 3 | . . 3 . Spaces Dug . | . . . . Terrain Destroyed 2 | . . . 2 Melee . | . . . . Projectile 2 | . . . 2 AOE . | . . . . Terrain Rammed . | . . . . Walls Destroyed . | . . . . Machines Disabled . | . . . . Actions | -11 -10 -10 -8 --------- Run | Yrd Mat Sub Mat Total 1983 | 116 144 1151 572 Wait 304 | . 22 174 108 Move 1500 | 90 115 907 388 Hop . | . . . . Pick Up 16 | 2 2 8 4 Fast Attach 20 | 8 . 4 8 Attach 10 | . 1 3 6 Detach 7 | 1 1 2 3 Swap 7 | 1 1 2 3 Drop 10 | . . 6 4 Fire 107 | 14 2 45 46 Melee . | . . . . Ram 1 | . . . 1 Kick . | . . . . Crush . | . . . . Escape Stasis . | . . . . Rewire . | . . . . Trap . | . . . . Miscellaneous 1 | . . . 1 Route ------- -11/Scrapyard -10/Materials (discovered 2 exits: [*Min] / *Sub) -10/Subcaves (discovered 3 exits: *Mat / [*Rec] / [*Scr]) -8/Materials (discovered 2 exits: [*Fac] / Sto) History --------- Turn | Location | Event 9 | -11/Scrapyard | Discovered new exit (range 16) 143 | -11/Scrapyard | Entered Materials 144 | -10/Materials | Met a group of wandering Federalists 208 | -10/Materials | Discovered new exit (range 8) 276 | -10/Materials | Discovered new exit (range 5) 289 | -10/Materials | Entered Subcaves 290 | -10/Subcaves | Continued accompanying wandering Federalists (4) 290 | -10/Subcaves | Approached by a straggling Scientist 313 | -10/Subcaves | Build established: Mutant 374 | -10/Subcaves | Shifting Twisted Machinery released Mak. System Shield 385 | -10/Subcaves | Shifting Twisted Machinery released Scrap Shield 400 | -10/Subcaves | Discovered new exit (range 11) 521 | -10/Subcaves | Discovered new exit (range 9) 675 | -10/Subcaves | Shifting Twisted Machinery released Sub. Machine Gun 787 | -10/Subcaves | A swath of the cavern ceiling suddenly collapsed 1248 | -10/Subcaves | Ambushed by Subdwellers from Twisted Machinery 1336 | -10/Subcaves | Shifting Twisted Machinery released Sub. Laser 1404 | -10/Subcaves | Shifting Twisted Machinery released Scrap Shield 1473 | -10/Subcaves | Core integrity fell below 50% 1700 | -10/Subcaves | Visited 4L-MR0's lab 1710 | -10/Subcaves | Found Gun Armor 1842 | -10/Subcaves | Entered Materials 1842 | -8/Materials | Evolved 4 slots: Utility x4 1844 | -8/Materials | Attached Gun Armor, gained temporary slots: Weapon x2 2087 | -8/Materials | Identified exit to Storage 2208 | -8/Materials | Discovered new exit (range 15) 2296 | -8/Materials | Build established: Tank 2547 | -8/Materials | Core integrity fell below 50% 2577 | -8/Materials | Core integrity fell below 20% 2584 | -8/Materials | Lost 11 parts (1p3n3u4w) 2621 | -8/Materials | Destroyed by G-47 Trooper with Particle Gun Last Messages --------------- Retrieving Zone 2I layout... Downloaded map data. 02526_ >> MONITOR: Recycling Unit M002 accepting Imp. Ion Engine (91%). 02529_ >> MONITOR: Recycling Unit M002 accepting Aluminum Leg (77%). 02542_ Slammed into G-47 Trooper. 02543_ G-47 Trooper suffers critical hit (Burn). 02553_ Imp. Sensor Array destroyed. 02562_ Critical hit (Burn: +37). 02573_ Triggered Alarm Trap. 02573_ An alarm sounds. 02573_ ALERT: Alarm triggered, dispatching investigation squad. 02578_ R-06 Scavenger destroyed. 02579_ K-01 Serf collects debris. 02580_ Acquired Com. Wheel. 02584_ K-01 Serf collects debris. 02594_ Acquired Imp. Sensor Array. 02617_ Critical hit (Burn: +37). Map ----- +----------------------------------------------------+ | " # =% ## % # ???????????? # | | # = #########+######+###########+##### | | ! " # #?# ! | | #### #### r ### | | #####??# ##?# " r """ | | ???????# #??# ####+################## """ | | ???????# #??# # #?#??????#??#"% """ | | ???????# #?####/### #?????????#?#T== * | | ???????# #?# # #???????????#" | | ???????# #?# """!# / #???##?#????## !!! | | ??????? #?# """ # #??########### !!! | | ??????? ??# """ / "" ##?# # !! | | ??????? ??# """ # "G g #??# """ # | | ??????? ??# # g"" #??# """ # ! | | ??????? ??######## YY #??# """ + | | ??????? #?????????##a####g##??# """ # ! | | ??????? ???????????# #?## #???# "T" " # | | ??????? ???????????# #?## #???# """[% % ##"T"##### | | ???????????????? ??# ##?# ##??# ##"""##?#? | | ???????????????????# #??# #???#################### | | ???????????????? #?# ##?# ##?????????????# ## | | ???????????????????# #??# #????????#?????# + | | ???????????????????# #??# ###?????????#??# # | | ?????????????????Y?? ?#?# #?##########???# # | | ???????????????? ### ??## ## ! ????# + | | ??????????????"????# ##?#@## ! #??##* # | | ??????????????????? ??#a## ##?######### | | ??????????????????# ??# ## """ """ + | | ???????????????#??? ??# ## """ """ #??#??#### ## | | ???????????????????# #??# ## """ """ #????????# ## | | ???????????????????# #??# ## #?#?????## # | | ????????????? ????## ##?# ## #????????# # | | ??????????????????# ### ######+###########??# # | | ??????????????? ? + # [ #??# # | | ??????????????????# ###+##### # #??# # | | ???????????? "????##### ??# # ##?# # | | ???????????#??????????# ## + ##?# ## | | ???>????????????? ??#?# """## # """ #??# #? | | ??????????????????????# """## # """" #### ## | | ??????????????????????# """## # """"" + | | ?????????#???##???????# ## # """"" #### ## | | ??????????????????????######### # """ #??# #? | | ???????????????????#???????#??# ##########??# #? | | ?????????????????????#????????# #?#????????## #? | | ??????????????????????????????# #??? ?? ?#?# #? | | ?????????????????????????#???? # ?? ??????# #? | | ?????????????????????#?????? ? #????????#?## #? | | ?????????????????????????????? #???????????# #? | | ?????????????????????????????? ????????????# #? | | ????????????????????????????? ?? ?????????# #? | +----------------------------------------------------+ Best States ------------- Heat Dissipation 31 Energy Generation 10 Energy Capacity 250 Matter Stores 300 Matter Capacity 300 Sight Range 16 Robot Scan Range 15 Terrain Scan Range 16 Terrain Scan Density 10 Armor Coverage 860 Evasion (%) 42 Targeting Accuracy 12 Recoil Reduction 2 Defensive Hacking 11 Item Schematics ----------------- None Robot Schematics ------------------ None Fabricated ------------ Nothing Repaired ---------- Nothing Alien Tech Used ----------------- None Achievements -------------- None Challenges ------------ None Game ------ Seed LinkedSigixFacilitator Manual? 0 Play Time 00:30:49 Cumulative 202.9 hours Start 2025.05.05 @ 20:48:11 End 2025.05.05 @ 21:18:52 Sessions 1 Manual Loads 0 Difficulty Rogue Special Mode None Game No. 161 Rogue 161 Adventurer 0 Explorer 0 Win Type - Total 4 Types 2/0/1/1/0/0/0/0/0/0 Lore% 63 Gallery% 64 Achievement% 55 Wizard Run 0 Options --------- Layout 2 ASCII 0 Keyboard 0 Movement Numpad Keybinds 0 Fullscreen 1 Font 16/Terminus Map View 55x47 Zoom Use 0% Tactical HUD 1 Map Filters NONE Filters NONE Steam 1 RUN: 0155f23f-9898-4057-8eb4-260ecc5efca8